fUST/lending_fUST_20260611
["ID","MTS","AMOUNT","RATE_DAILY","PERIOD"]
[424765098,1781137840000,-151.0,0.00021918,2]
[424765158,1781137841000,-361.07898356,0.00022301,2]
[424765167,1781137841000,-342.243456,0.00022852,2]
[424765163,1781137841000,-998.316737,0.00022739,2]
[424765159,1781137841000,-500.0,0.00022465,2]
[424765164,1781137841000,-998.316737,0.00022739,2]
[424765166,1781137841000,-334.61422859,0.00022752,2]
[424765138,1781137841000,-151.0,0.00021918,2]
[424765161,1781137841000,-998.316737,0.00022739,2]
[424765173,1781137841000,-156.57,0.00023496,2]
[424765168,1781137841000,-500.0,0.00023013,2]
[424765170,1781137841000,-500.0,0.00023287,2]
[424765169,1781137841000,-1000.0,0.00023224,10]
[424765175,1781137841000,-156.57,0.00023496,2]
[424765165,1781137841000,-500.0,0.00022739,2]
[424765172,1781137841000,-156.57,0.00023496,2]
[424765176,1781137841000,-156.57,0.00023496,2]
[424765174,1781137841000,-156.57,0.00023496,2]
[424765178,1781137841000,-156.57,0.00023496,2]
[424765155,1781137841000,-283.93,0.00022191,2]
[424765160,1781137841000,-696.16,0.00022466,2]
[424765148,1781137841000,-151.0,0.00022191,2]
[424765157,1781137841000,-336.53304433,0.00022236,2]
[424765171,1781137841000,-156.59,0.00023496,2]
[424765139,1781137841000,-151.0,0.00021918,2]
[424765140,1781137841000,-314.676411,0.00021918,2]
[424765137,1781137841000,-151.0,0.00021918,2]
[424765135,1781137841000,-151.0,0.00021918,2]
[424765136,1781137841000,-151.0,0.00021918,2]
[424765146,1781137841000,-151.0,0.00021918,2]
[424765143,1781137841000,-151.0,0.00021918,2]
[424765162,1781137841000,-998.316737,0.00022739,2]
[424765152,1781137841000,-500.0,0.00022191,2]
[424765142,1781137841000,-314.676411,0.00021918,2]
[424765147,1781137841000,-151.0,0.00022191,2]
[424765144,1781137841000,-314.676411,0.00021918,2]
[424765141,1781137841000,-151.0,0.00021918,2]
[424765145,1781137841000,-314.676411,0.00021918,2]
[424765149,1781137841000,-151.0,0.00022191,2]
[424765154,1781137841000,-547.24,0.00022191,2]
[424765153,1781137841000,-500.0,0.00022191,2]
[424765151,1781137841000,-238.90642674,0.00022191,2]
[424765150,1781137841000,-501.884742,0.00022191,2]
[424765156,1781137841000,-696.1,0.00022192,2]
[424765179,1781137841000,-500.0,0.00023561,2]
[424765198,1781137841000,-151.0,0.0002393,2]
[424765207,1781137841000,-417.15472785,0.00024,7]
[424765209,1781137841000,-151.0,0.00024,2]
[424765205,1781137841000,-444.0,0.0002393,2]
[424765206,1781137841000,-417.15472785,0.00024,3]
[424765216,1781137841000,-500.0,0.00024931,2]
[424765211,1781137841000,-194.304769,0.00024,2]
[424765208,1781137841000,-417.15472785,0.00024,3]
[424765218,1781137841000,-500.0,0.00025205,2]
[424765215,1781137841000,-500.0,0.00024657,2]
[424765213,1781137841000,-151.0,0.0002411,6]
[424765217,1781137841000,-1040.95801191,0.00025,10]
[424765210,1781137841000,-151.0,0.00024,2]
[424765214,1781137841000,-500.0,0.00024383,2]
[424765212,1781137841000,-500.0,0.00024109,2]
[424765221,1781137841000,-671.77936835,0.00025444,2]
[424765220,1781137841000,-6085.88211101,0.00025444,2]
[424765219,1781137841000,-76206.74148191,0.00025444,2]
[424765177,1781137841000,-156.57,0.00023496,2]
[424765193,1781137841000,-151.6987,0.0002393,2]
[424765199,1781137841000,-151.0,0.0002393,2]
[424765180,1781137841000,-500.0,0.00023835,2]
[424765203,1781137841000,-744.0,0.0002393,2]
[424765204,1781137841000,-188.08,0.0002393,2]
[424765191,1781137841000,-314.676411,0.0002393,2]
[424765184,1781137841000,-151.0,0.0002393,2]
[424765186,1781137841000,-151.0,0.0002393,2]
[424765190,1781137841000,-255.947557,0.0002393,2]
[424765185,1781137841000,-151.0,0.0002393,2]
[424765189,1781137841000,-314.676411,0.0002393,2]
[424765188,1781137841000,-151.0,0.0002393,2]
[424765183,1781137841000,-151.0,0.0002392,2]
[424765187,1781137841000,-314.676411,0.0002393,2]
[424765181,1781137841000,-151.0,0.0002392,2]
[424765197,1781137841000,-523.326981,0.0002393,2]
[424765195,1781137841000,-523.326981,0.0002393,2]
[424765196,1781137841000,-523.326981,0.0002393,2]
[424765194,1781137841000,-523.326981,0.0002393,2]
[424765182,1781137841000,-151.0,0.0002392,2]
[424765202,1781137841000,-3637.0,0.0002393,2]
[424765192,1781137841000,-314.676411,0.0002393,2]
[424765201,1781137841000,-2208.0,0.0002393,2]
[424765200,1781137841000,-176.767651,0.0002393,2]
[424765227,1781137843000,-485.7107963,0.00025444,2]
[424765228,1781137844000,-1148.2849989,0.00025444,2]
[424765242,1781137846000,-112723.9980883,0.00025444,2]
[424765241,1781137846000,-151.0,0.00021918,2]
[424765236,1781137846000,-151.0,0.00021918,2]
[424765238,1781137846000,-981.68992899,0.00025444,2]
[424765237,1781137846000,-151.0,0.0002392,2]
[424765240,1781137846000,-373.30958529,0.00025444,2]
[424765239,1781137846000,-494.293216,0.00025444,2]
[424765235,1781137846000,-151.0,0.00021918,2]
[424765234,1781137846000,-151.0,0.00021918,2]
[424765243,1781137891000,-433.45811007,0.0001529,2]
[424765244,1781137907000,-692.82544597,0.00015444,2]
[424765245,1781138170000,210.3514851,0.000199,30]
[424765269,1781139032000,-5000.0,0.00011695,2]
[424765299,1781139032000,-1311.66268305,0.00016289,2]
[424765301,1781139032000,-151.0,0.000164,2]
[424765297,1781139032000,-460.99863137,0.00016289,2]
[424765293,1781139032000,-157.72743478,0.000162,2]
[424765295,1781139032000,-4501.4173554,0.00016289,2]
[424765302,1781139032000,-151.0,0.000164,2]
[424765291,1781139032000,-157.72743478,0.000162,2]
[424765287,1781139032000,-156.21666146,0.000162,2]
[424765284,1781139032000,-233.58343992,0.00016173,2]
[424765289,1781139032000,-156.21666146,0.000162,2]
[424765278,1781139032000,-254.4461347,0.00014417,2]
[424765271,1781139032000,-151.0,0.00011814,2]
[424765272,1781139032000,-153.66621046,0.0001347,2]
[424765306,1781139032000,-225.49126576,0.0001649,2]
[424765276,1781139032000,-1000.0,0.00014292,2]
[424765267,1781139032000,-1101.74559054,0.00011578,2]
[424765280,1781139032000,-157.79653679,0.00015697,2]
[424765304,1781139032000,-314.21251098,0.0001649,2]
[424765274,1781139032000,-153.66621046,0.0001374,7]
[424765312,1781139032000,-160.0,0.00019685,2]
[424765308,1781139032000,-467.16687983,0.0001649,2]
[424765343,1781139032000,-1003.34647623,0.00024283,2]
[424765345,1781139032000,-598.70512035,0.00024283,2]
[424765341,1781139032000,-188.08,0.00024283,2]
[424765339,1781139032000,-744.0,0.00024283,2]
[424765335,1781139032000,-1416.0,0.00024283,2]
[424765334,1781139032000,-1838.0,0.00024283,2]
[424765332,1781139032000,-151.0,0.0002411,6]
[424765329,1781139032000,-438.31134991,0.00023835,2]
[424765330,1781139032000,-641.27627481,0.0002393,2]
[424765281,1781139032000,-315.59307357,0.00016173,2]
[424765328,1781139032000,-500.0,0.00023561,2]
[424765324,1781139032000,-500.0,0.00023013,2]
[424765326,1781139032000,-500.0,0.00023287,2]
[424765320,1781139032000,-500.0,0.00022465,2]
[424765322,1781139032000,-500.0,0.00022739,2]
[424765319,1781139032000,-500.0,0.00022191,2]
[424765317,1781139032000,-216.907,0.00022191,2]
[424765315,1781139032000,-500.0,0.00021917,2]
[424765313,1781139032000,-768.91038747,0.00019685,2]
[424765310,1781139032000,-178.566323,0.00017976,2]
[424765377,1781139040000,-2016.94840342,0.00024283,2]
[424765378,1781139040000,-679.19138643,0.00024283,2]
[424765376,1781139040000,-153.66621045,0.00013233,14]
[424765385,1781139041000,-500.0,0.00025001,2]
[424765384,1781139041000,-157.90217072,0.00025001,2]
[424765386,1781139041000,-500.0,0.00025001,2]
[424765383,1781139041000,-500.0,0.00025001,2]
[424765381,1781139041000,-500.0,0.00025001,2]
[424765382,1781139041000,-496.60931261,0.00025001,2]
[424765387,1781139041000,-500.0,0.00025001,2]
[424765380,1781139041000,-1528.80861357,0.00024283,2]
[424765388,1781139041000,-496.77580492,0.00025001,2]
[424765390,1781139041000,-500.0,0.00025001,2]
[424765392,1781139041000,-500.0,0.00025001,2]
[424765395,1781139041000,-57.48331918,0.00025001,2]
[424765394,1781139041000,-500.0,0.00025001,2]
[424765393,1781139041000,-500.0,0.00025001,2]
[424765391,1781139041000,-500.0,0.00025001,2]
[424765389,1781139041000,-3.22419508,0.00025001,2]
[424765425,1781139047000,-500.0,0.00025001,2]
[424765426,1781139047000,-250.0,0.00025001,2]
[424765424,1781139047000,-442.51668082,0.00025001,2]
[424765427,1781139047000,-5081.561989,0.00025002,2]
[424765428,1781139239000,1000.0,0.00023841,30]
[424765429,1781139331000,152.0,0.00020137,30]
[424765430,1781139826000,500.0,0.00024074,30]
[424765432,1781139827000,500.0,0.00024074,30]
[424765431,1781139827000,500.0,0.00024074,30]
[424765433,1781139829000,500.0,0.000238,30]
[424765436,1781139830000,655.969,0.000238,30]
[424765435,1781139830000,500.0,0.000238,30]
[424765434,1781139830000,500.0,0.000238,30]
[424765437,1781139931000,152.0,0.00022872,30]
[424765498,1781140231000,-262.32078478,0.00016899,2]
[424765485,1781140231000,-5000.0,0.00015824,6]
[424765489,1781140231000,-5.02996505,0.0001603,2]
[424765493,1781140231000,-315.59307357,0.00016462,2]
[424765491,1781140231000,-157.79653678,0.00016146,2]
[424765487,1781140231000,-172.37006995,0.0001603,2]
[424765495,1781140231000,-88.18089482,0.00016899,2]
[424765580,1781140238000,-17040.08040731,0.000168,2]
[424765574,1781140238000,-157.0512715,0.000167,2]
[424765578,1781140238000,-2227.39417471,0.0001673,6]
[424765576,1781140238000,-2772.60582529,0.0001673,6]
[424765848,1781140240000,-2624.6518636,0.000168,2]
[424765846,1781140240000,-11675.30303553,0.000168,2]
[424765847,1781140240000,-6543.10819671,0.000168,2]
[424765845,1781140240000,-20253.8769916,0.000168,2]
[424765843,1781140240000,-1825.08070627,0.000168,2]
[424765844,1781140240000,-3838.29068066,0.000168,2]
[424765869,1781140242000,-2300.06973649,0.000168,2]
[424765868,1781140242000,-3487.31149781,0.000168,2]
[424765867,1781140242000,-565.9030476,0.000168,2]
[424765865,1781140242000,-157.0512715,0.000167,2]
[424765866,1781140242000,-159.48342611,0.000167,2]
[424765871,1781140243000,-109.36408218,0.000167,2]
[424765870,1781140243000,-159.73093112,0.000167,2]
[424765883,1781140246000,-57752.13007131,0.000168,2]
[424765882,1781140246000,-49.77351946,0.000167,2]
[424765884,1781140313000,152.0,0.00022872,30]
[424765885,1781140614000,152.0,0.0002355,30]
[424765946,1781141432000,-3266.11965696,0.00013914,6]
[424766021,1781141438000,-219.93167224,0.00015418,2]
[424766023,1781141438000,-507.45994026,0.00015418,2]
[424766032,1781141438000,-38660.12565667,0.000166,2]
[424766026,1781141438000,-152.0,0.00015697,2]
[424766019,1781141438000,-497.58712892,0.00014055,6]
[424766030,1781141438000,-154.34784648,0.00016304,7]
[424766036,1781141438000,-29645.73086605,0.000166,2]
[424766034,1781141438000,-968.13929442,0.000166,2]
[424766017,1781141438000,-1733.88034304,0.00013914,6]
[424766024,1781141438000,-177.400035,0.00015598,2]
[424766028,1781141438000,-164.80993619,0.00016059,2]
[424766582,1781141443000,-304.25747825,0.000166,2]
[424766576,1781141443000,-3983.50034083,0.00013621,6]
[424766578,1781141443000,-152.0,0.00013759,7]
[424766557,1781141443000,-1016.49965917,0.00013621,6]
[424766580,1781141443000,-10490.70196757,0.000166,2]
[424766942,1781141446000,-26696.4824819,0.000166,2]
[424766939,1781141446000,-261.82018379,0.00013914,7]
[424767162,1781141463000,152.49209071,0.0001,2]
[424767163,1781141510000,-973.79146533,0.00016434,6]
[424767164,1781141519000,154.0,0.0002,120]
[424767165,1781141749000,152.0,0.00023648,30]
[424767166,1781141750000,152.0,0.00023648,30]
[424767167,1781141750000,152.0,0.00023696,30]
[424767168,1781142039000,152.0,0.00023696,30]
[424767169,1781142242000,152.8508049,0.00021125,120]
[424767170,1781142291000,251.68564837,0.00021125,120]
[424767171,1781142321000,171.9598633,0.00021125,38]
[424767173,1781142339000,152.0,0.00023685,30]
[424767405,1781142638000,-500.0,0.00013675,2]
[424767403,1781142638000,-500.0,0.00013675,2]
[424767400,1781142638000,-500.0,0.00013675,2]
[424767394,1781142638000,-500.0,0.00013675,2]
[424767402,1781142638000,-500.0,0.00013675,2]
[424767411,1781142638000,-20.0254143,0.00013675,2]
[424767398,1781142638000,-500.0,0.00013675,2]
[424767396,1781142638000,-405.99398214,0.00013675,2]
[424767392,1781142638000,-500.0,0.00013675,2]
[424767381,1781142638000,-500.0,0.00013675,2]
[424767407,1781142638000,-500.0,0.00013675,2]
[424767390,1781142638000,-500.0,0.00013675,2]
[424767388,1781142638000,-500.0,0.00013675,2]
[424767387,1781142638000,-643.07911649,0.00013675,2]
[424767379,1781142638000,-5000.0,0.00012426,6]
[424767374,1781142638000,-1773.31533278,0.00012179,6]
[424767371,1781142638000,-3226.68466722,0.00012179,6]
[424767377,1781142638000,-5000.0,0.00012302,6]
[424767385,1781142638000,-500.0,0.00013675,2]
[424767409,1781142638000,-479.9745857,0.00013675,2]
[424767383,1781142638000,-500.0,0.00013675,2]
[424767415,1781142638000,-500.0,0.00013675,2]
[424767413,1781142638000,-500.0,0.00013675,2]
[424767444,1781142638000,-152.0,0.0001374,7]
[424767445,1781142638000,-152.0,0.0001374,7]
[424767441,1781142638000,-152.0,0.0001374,7]
[424767439,1781142638000,-152.0,0.0001374,7]
[424767437,1781142638000,-500.0,0.00013675,2]
[424767453,1781142638000,-152.0,0.00013778,7]
[424767451,1781142638000,-152.0,0.00013759,7]
[424767449,1781142638000,-152.0,0.00013759,7]
[424767447,1781142638000,-152.0,0.00013759,7]
[424767455,1781142638000,-152.0,0.00013884,7]
[424767429,1781142638000,-418.66579298,0.00013675,2]
[424767427,1781142638000,-81.33420702,0.00013675,2]
[424767433,1781142638000,-500.0,0.00013675,2]
[424767431,1781142638000,-500.0,0.00013675,2]
[424767421,1781142638000,-500.0,0.00013675,2]
[424767425,1781142638000,-500.0,0.00013675,2]
[424767423,1781142638000,-500.0,0.00013675,2]
[424767419,1781142638000,-500.0,0.00013675,2]
[424767435,1781142638000,-500.0,0.00013675,2]
[424767417,1781142638000,-500.0,0.00013675,2]
[424767541,1781142639000,-1115.0,0.00015775,2]
[424767539,1781142639000,-1115.0,0.00015775,2]
[424767534,1781142639000,-500.0,0.00015775,2]
[424767536,1781142639000,-1115.0,0.00015775,2]
[424767523,1781142639000,-500.0,0.00015775,2]
[424767525,1781142639000,-1115.0,0.00015775,2]
[424767526,1781142639000,-500.0,0.00015775,2]
[424767528,1781142639000,-1115.0,0.00015775,2]
[424767521,1781142639000,-1115.0,0.00015775,2]
[424767542,1781142639000,-1115.0,0.00015775,2]
[424767530,1781142639000,-500.0,0.00015775,2]
[424767538,1781142639000,-500.0,0.00015775,2]
[424767558,1781142639000,-500.0,0.00015775,2]
[424767540,1781142639000,-254.196059,0.00015775,2]
[424767532,1781142639000,-1115.0,0.00015775,2]
[424767545,1781142639000,-1115.0,0.00015775,2]
[424767544,1781142639000,-1115.0,0.00015775,2]
[424767543,1781142639000,-1115.0,0.00015775,2]
[424767547,1781142639000,-1115.0,0.00015775,2]
[424767556,1781142639000,-500.0,0.00015775,2]
[424767557,1781142639000,-500.0,0.00015775,2]
[424767519,1781142639000,-500.0,0.00015775,2]
[424767548,1781142639000,-1115.0,0.00015775,2]
[424767546,1781142639000,-1115.0,0.00015775,2]
[424767550,1781142639000,-1115.0,0.00015775,2]
[424767552,1781142639000,-1115.0,0.00015775,2]
[424767517,1781142639000,-1115.0,0.00015775,2]
[424767490,1781142639000,-186.35182642,0.00015675,2]
[424767513,1781142639000,-1115.0,0.00015775,2]
[424767456,1781142639000,-172.00571794,0.00013914,7]
[424767458,1781142639000,-172.00571794,0.00014192,7]
[424767460,1781142639000,-1000.0,0.00014355,2]
[424767462,1781142639000,-96.65261024,0.0001461,7]
[424767474,1781142639000,-388.865024,0.0001529,2]
[424767465,1781142639000,-75.3531077,0.0001461,7]
[424767467,1781142639000,-156.89954064,0.00014962,2]
[424767469,1781142639000,-187.77220312,0.00014962,2]
[424767471,1781142639000,-165.56597216,0.00014962,2]
[424767472,1781142639000,-172.00571794,0.00015027,7]
[424767476,1781142639000,-172.00571797,0.00015584,7]
[424767478,1781142639000,-232.72743497,0.00015675,2]
[424767515,1781142639000,-500.0,0.00015775,2]
[424767480,1781142639000,-166.64282897,0.00015675,2]
[424767484,1781142639000,-375.54440624,0.00015675,2]
[424767488,1781142639000,-165.79661948,0.00015675,2]
[424767486,1781142639000,-224.64542501,0.00015675,2]
[424767495,1781142639000,-157.75392655,0.00015675,2]
[424767492,1781142639000,-144.7801179,0.00015675,2]
[424767506,1781142639000,-1115.0,0.00015775,2]
[424767498,1781142639000,-500.0,0.00015775,2]
[424767496,1781142639000,-467.32470219,0.00015774,2]
[424767500,1781142639000,-500.0,0.00015775,2]
[424767502,1781142639000,-122.03531955,0.00015775,2]
[424767504,1781142639000,-992.96468045,0.00015775,2]
[424767510,1781142639000,-500.0,0.00015775,2]
[424767482,1781142639000,-313.79908128,0.00015675,2]
[424767549,1781142639000,-1115.0,0.00015775,2]
[424767573,1781142639000,-474.31968347,0.00015775,2]
[424767554,1781142639000,-1125.89497409,0.00015775,2]
[424767591,1781142639000,-500.0,0.00015874,2]
[424767590,1781142639000,-500.0,0.00015874,2]
[424767594,1781142639000,-500.0,0.00015874,2]
[424767593,1781142639000,-500.0,0.00015874,2]
[424767595,1781142639000,-500.0,0.00015874,2]
[424767596,1781142639000,-500.0,0.00015874,2]
[424767608,1781142639000,-500.0,0.00015874,2]
[424767605,1781142639000,-370.45350065,0.00015874,2]
[424767602,1781142639000,-500.0,0.00015874,2]
[424767597,1781142639000,-500.0,0.00015874,2]
[424767599,1781142639000,-500.0,0.00015874,2]
[424767601,1781142639000,-398.02833547,0.00015874,2]
[424767585,1781142639000,-444.88005566,0.00015874,2]
[424767600,1781142639000,-500.0,0.00015874,2]
[424767603,1781142639000,-500.0,0.00015874,2]
[424767606,1781142639000,-500.0,0.00015874,2]
[424767607,1781142639000,-616.74781817,0.00015874,2]
[424767609,1781142639000,-500.0,0.00015874,2]
[424767610,1781142639000,-500.0,0.00015874,2]
[424767614,1781142639000,-500.0,0.00015874,2]
[424767612,1781142639000,-500.0,0.00015874,2]
[424767611,1781142639000,-1013.0,0.00015874,2]
[424767613,1781142639000,-1013.0,0.00015874,2]
[424767615,1781142639000,-609.0,0.00015874,2]
[424767616,1781142639000,-242.27270985,0.00015874,2]
[424767551,1781142639000,-1115.0,0.00015775,2]
[424767604,1781142639000,-386.85646069,0.00015874,2]
[424767589,1781142639000,-500.0,0.00015874,2]
[424767598,1781142639000,-500.0,0.00015874,2]
[424767586,1781142639000,-500.0,0.00015874,2]
[424767553,1781142639000,-1115.0,0.00015775,2]
[424767555,1781142639000,-500.0,0.00015775,2]
[424767561,1781142639000,-500.0,0.00015775,2]
[424767559,1781142639000,-500.0,0.00015775,2]
[424767588,1781142639000,-500.0,0.00015874,2]
[424767560,1781142639000,-500.0,0.00015775,2]
[424767562,1781142639000,-500.0,0.00015775,2]
[424767567,1781142639000,-639.23108153,0.00015775,2]
[424767565,1781142639000,-500.0,0.00015775,2]
[424767571,1781142639000,-500.0,0.00015775,2]
[424767564,1781142639000,-500.0,0.00015775,2]
[424767572,1781142639000,-500.0,0.00015775,2]
[424767569,1781142639000,-500.0,0.00015775,2]
[424767574,1781142639000,-500.0,0.00015775,2]
[424767576,1781142639000,-500.0,0.00015775,2]
[424767563,1781142639000,-500.0,0.00015775,2]
[424767592,1781142639000,-500.0,0.00015874,2]
[424767587,1781142639000,-500.0,0.00015874,2]
[424767582,1781142639000,-500.0,0.00015874,2]
[424767581,1781142639000,-500.0,0.00015874,2]
[424767583,1781142639000,-500.0,0.00015874,2]
[424767580,1781142639000,-151.5,0.00015775,2]
[424767577,1781142639000,-500.0,0.00015775,2]
[424767578,1781142639000,-585.88329422,0.00015775,2]
[424767575,1781142639000,-500.0,0.00015775,2]
[424767584,1781142639000,-500.0,0.00015874,2]
[424767579,1781142639000,-565.66738752,0.00015775,2]
[424767642,1781142640000,-1013.0,0.00015874,2]
[424767626,1781142640000,-609.0,0.00015874,2]
[424767633,1781142640000,-302.51185994,0.00015874,2]
[424767641,1781142640000,-609.0,0.00015874,2]
[424767631,1781142640000,-609.0,0.00015874,2]
[424767629,1781142640000,-1013.0,0.00015874,2]
[424767627,1781142640000,-1013.0,0.00015874,2]
[424767630,1781142640000,-151.5,0.00015874,2]
[424767628,1781142640000,-609.0,0.00015874,2]
[424767620,1781142640000,-1013.0,0.00015874,2]
[424767624,1781142640000,-609.0,0.00015874,2]
[424767623,1781142640000,-609.0,0.00015874,2]
[424767621,1781142640000,-609.0,0.00015874,2]
[424767622,1781142640000,-1013.0,0.00015874,2]
[424767618,1781142640000,-609.0,0.00015874,2]
[424767619,1781142640000,-609.0,0.00015874,2]
[424767617,1781142640000,-1013.0,0.00015874,2]
[424767645,1781142640000,-609.0,0.00015874,2]
[424767625,1781142640000,-1013.0,0.00015874,2]
[424767644,1781142640000,-1013.0,0.00015874,2]
[424767660,1781142640000,-81.1165617,0.00015874,2]
[424767632,1781142640000,-1013.0,0.00015874,2]
[424767659,1781142640000,-414.12432266,0.00015874,2]
[424767643,1781142640000,-609.0,0.00015874,2]
[424767657,1781142640000,-1013.0,0.00015874,2]
[424767653,1781142640000,-1013.0,0.00015874,2]
[424767650,1781142640000,-1013.0,0.00015874,2]
[424767648,1781142640000,-1013.0,0.00015874,2]
[424767649,1781142640000,-609.0,0.00015874,2]
[424767651,1781142640000,-609.0,0.00015874,2]
[424767656,1781142640000,-609.0,0.00015874,2]
[424767661,1781142640000,-1001.85298308,0.00015874,2]
[424767658,1781142640000,-113.75911564,0.00015874,2]
[424767652,1781142640000,-1013.0,0.00015874,2]
[424767655,1781142640000,-1013.0,0.00015874,2]
[424767647,1781142640000,-1013.0,0.00015874,2]
[424767639,1781142640000,-609.0,0.00015874,2]
[424767640,1781142640000,-1013.0,0.00015874,2]
[424767636,1781142640000,-1013.0,0.00015874,2]
[424767646,1781142640000,-1013.0,0.00015874,2]
[424767635,1781142640000,-609.0,0.00015874,2]
[424767654,1781142640000,-609.0,0.00015874,2]
[424767663,1781142641000,-609.0,0.00015874,2]
[424767662,1781142641000,-11.14701692,0.00015874,2]
[424767664,1781142641000,-1013.0,0.00015874,2]
[424767667,1781142641000,-609.0,0.00015874,2]
[424767666,1781142641000,-1022.42184881,0.00015874,2]
[424767668,1781142641000,-609.0,0.00015874,2]
[424767669,1781142641000,-629.33049065,0.00015874,2]
[424767670,1781142641000,-388.865024,0.00015933,2]
[424767671,1781142641000,-211.66339998,0.00016092,2]
[424767665,1781142641000,-609.0,0.00015874,2]
[424767685,1781142643000,-720.0,0.00016092,2]
[424767683,1781142643000,-4687.97517867,0.00016092,2]
[424767682,1781142643000,-8723.20172005,0.00016092,2]
[424767681,1781142643000,-5000.0,0.00015715,6]
[424767713,1781142646000,152.0,0.00023645,30]
[424767714,1781142646000,-152.0,0.00013921,7]
[424767715,1781142646000,-152.0,0.00013921,7]
[424767718,1781142646000,-3845.48236239,0.00016092,2]
[424767719,1781142646000,-11577.8732666,0.00016092,2]
[424767716,1781142646000,-15153.41318504,0.00016092,2]
[424767717,1781142646000,-6727.950158,0.00016092,2]
[424767721,1781142840000,5000.0,0.00011,6]
[424767722,1781142848000,5000.0,0.00011,6]
[424767723,1781142853000,152.0,0.00023645,30]
[424767724,1781142854000,152.0,0.00023645,30]
[424767725,1781142856000,5000.0,0.00011,6]
[424767726,1781142864000,-302.46804711,9.315e-05,2]
[424767727,1781142865000,-537.93772011,9.315e-05,2]
[424767728,1781142873000,-1056.90754295,9.222e-05,2]
[424767729,1781142874000,-295.46297999,9.222e-05,2]
[424767730,1781142875000,-372.362627,9.222e-05,2]
[424767731,1781142876000,-336.88679517,9.222e-05,2]
[424767732,1781142881000,-348.70282918,9.13e-05,2]
[424767733,1781142883000,-379.55529104,9.13e-05,2]
[424767734,1781142884000,-720.75504863,9.13e-05,2]
[424767735,1781142885000,-235.67396955,9.13e-05,2]
[424767736,1781142886000,-456.27,9.13e-05,2]
[424767737,1781142887000,-300.0,9.13e-05,2]
[424767738,1781142888000,-1056.90563718,9.13e-05,2]
[424767739,1781142889000,-302.26375056,9.13e-05,2]
[424767740,1781142890000,-167.42108723,9.13e-05,2]
[424767741,1781142891000,-686.4799977,9.13e-05,2]
[424767743,1781142892000,-179.91794919,9.222e-05,2]
[424767742,1781142892000,-345.97238893,9.13e-05,2]
[424767744,1781142897000,-199.53298916,9.222e-05,2]
[424767745,1781142898000,-549.9041487,9.222e-05,2]
[424767747,1781142899000,-152.0,9.222e-05,2]
[424767746,1781142899000,-537.93871171,9.222e-05,2]
[424767748,1781142900000,-344.72939347,9.222e-05,2]
[424767749,1781142902000,-334.95862592,9.222e-05,2]
[424767750,1781142903000,-218.51663288,9.222e-05,2]
[424767751,1781142906000,-184.82456274,9.13e-05,2]
[424767752,1781143041000,544.89994296,0.00021131,120]
[424767753,1781143046000,169.31143698,0.00017,120]
[424767754,1781143048000,3794.29728912,0.00021131,30]
[424767755,1781143060000,5048.1264322,0.00021129,30]
[424767756,1781143092000,5000.0,0.00011,6]
[424767757,1781143113000,5000.0,0.00011,6]
[424767758,1781143135000,5000.0,0.00011,6]
[424767760,1781143203000,151.0,8.336e-05,2]
[424767761,1781143255000,5000.0,8.401e-05,2]
[424767762,1781143277000,5000.0,8.401e-05,2]
[424767763,1781143289000,152.0,0.00021543,30]
[424767764,1781143299000,5000.0,8.401e-05,2]